bitfinex/quotes_BTCUSD_20250303
["timestamp","ask_amount","ask_price","bid_price","bid_amount"]
[1740986637441,0.16488422,92090.0,92089.0,0.01454085]
[1740986637676,0.16288422,92090.0,92089.0,0.01454085]
[1740986637964,2.2e-07,92090.0,92089.0,0.01454085]
[1740986638170,0.00100022,92090.0,92089.0,0.01454085]
[1740986638361,0.00100022,92090.0,92089.0,0.17742585]
[1740986639173,0.00100022,92090.0,92089.0,0.01454085]
[1740986639380,0.16388422,92090.0,92089.0,0.01454085]
[1740986639576,0.00100022,92090.0,92050.0,0.0001703]
[1740986639818,0.0453,92087.0,92051.0,0.0973302]
[1740986640244,0.217188,92086.0,92070.0,0.01454085]
[1740986640421,0.0453,92087.0,92072.0,0.162915]
[1740986640636,0.162902,92080.0,92052.0,0.3]
[1740986640835,0.0453,92087.0,92054.0,0.01454085]
[1740986641035,0.0453,92087.0,92052.0,0.3]
[1740986641036,0.0453,92087.0,92061.0,0.01454085]
[1740986641236,0.0463,92087.0,92063.0,0.01454085]
[1740986641481,0.0463,92087.0,92085.0,0.01454085]
[1740986641623,0.0463,92087.0,92084.0,0.162894]
[1740986641624,0.0453,92087.0,92086.0,0.17743185]
[1740986641810,0.00032,92090.0,92089.0,0.17742585]
[1740986642011,0.00032,92090.0,92089.0,0.01454085]
[1740986642231,0.163204,92090.0,92089.0,0.01454085]
[1740986642649,0.00032,92090.0,92089.0,0.01454085]
[1740986642819,0.163204,92090.0,92089.0,0.01454085]
[1740986643222,0.00032,92090.0,92089.0,0.17742585]
[1740986643684,0.00032,92090.0,92089.0,0.17642585]
[1740986643897,0.32442,92090.0,92089.0,0.17642585]
[1740986644713,0.32542,92090.0,92089.0,0.17642585]
[1740986645058,0.32542,92090.0,92089.0,0.18764717]
[1740986645285,0.32442,92090.0,92089.0,0.18764717]
[1740986645616,0.000661,92090.0,92089.0,0.18764717]
[1740986645763,0.000661,92090.0,92089.0,0.48764717]
[1740986645958,0.000661,92090.0,92089.0,0.48864717]
[1740986646160,0.000661,92090.0,92089.0,0.01454085]
[1740986646402,0.000661,92090.0,92089.0,0.01354085]
[1740986646986,0.487645,92090.0,92078.0,0.01147324]
[1740986647184,0.541941,92090.0,92073.0,0.217217]
[1740986647402,0.324761,92090.0,92068.0,0.21723]
[1740986647629,0.324761,92090.0,92086.0,0.01454085]
[1740986648401,0.324761,92090.0,92089.0,0.18142585]
[1740986648814,0.324761,92090.0,92089.0,0.17742585]
[1740986649016,0.325761,92090.0,92089.0,0.17742585]
[1740986650372,0.324761,92090.0,92089.0,0.18042585]
[1740986650956,0.325761,92090.0,92089.0,0.01754085]
[1740986651161,0.325761,92090.0,92089.0,0.003]
[1740986651162,0.488645,92090.0,92089.0,0.003]
[1740986651407,0.487645,92090.0,92089.0,0.003]
[1740986652215,0.324761,92090.0,92072.0,0.162914]
[1740986652412,0.324761,92090.0,92050.0,0.0968103]
[1740986652413,0.162914,92073.0,92050.0,0.0968103]
[1740986652588,0.3241,92072.0,92064.0,0.217238]
[1740986652792,0.3241,92072.0,92050.0,0.0968103]
[1740986652972,0.3241,92079.0,92050.0,0.0001703]
[1740986653177,0.162931,92064.0,92057.0,0.162942]
[1740986653375,0.3241,92079.0,92061.0,0.01454085]
[1740986653583,0.162918,92071.0,92051.0,0.01217424]
[1740986653783,0.3241,92079.0,92051.0,0.01217424]
[1740986653984,0.3241,92079.0,92068.0,0.01454085]
[1740986654182,0.3241,92079.0,92051.0,0.01317424]
[1740986654391,0.162926,92066.0,92065.0,0.01454085]
[1740986654565,0.3,92078.0,92057.0,0.01454085]
[1740986654771,0.217209,92077.0,92051.0,0.01317424]
[1740986654978,0.39241178,92078.0,92051.0,0.0015702]
[1740986654979,0.162951,92052.0,92051.0,0.0015702]
[1740986655206,0.487051,92052.0,92051.0,0.0015702]
[1740986655606,0.487051,92052.0,92051.0,0.0005702]
[1740986656586,0.3241,92052.0,92051.0,0.0005702]
[1740986656937,0.487051,92052.0,92051.0,0.0005702]
[1740986657667,0.488051,92052.0,92051.0,0.0005702]
[1740986658682,0.788051,92052.0,92051.0,0.0005702]
[1740986658825,0.94990587,92052.0,92051.0,0.0005702]
[1740986659036,0.217309,92035.0,92008.0,0.0967703]
[1740986659244,0.0481,92033.0,92011.0,0.00080015]
[1740986659447,0.0481,92033.0,92024.0,0.163]
[1740986659647,0.162986,92032.0,92023.0,0.163002]
[1740986659864,0.02191757,92031.0,92024.0,0.01454085]
[1740986660068,0.02191757,92031.0,92020.0,0.217343]
[1740986660273,0.16299,92030.0,92020.0,0.217343]
[1740986660480,0.02191757,92031.0,92011.0,0.21816315]
[1740986660686,0.02191757,92031.0,92018.0,0.163011]
[1740986660880,0.21732,92030.0,92011.0,0.21816315]
[1740986661118,0.02191757,92031.0,92011.0,0.00080015]
[1740986661320,0.02291757,92031.0,92011.0,0.00080015]
[1740986661474,0.001,92031.0,92030.0,0.17753085]
[1740986661676,0.3251,92031.0,92030.0,0.17753085]
[1740986661992,0.3241,92031.0,92030.0,0.17753085]
[1740986662197,0.3241,92031.0,92030.0,0.01454085]
[1740986662617,0.3241,92032.0,92031.0,0.01454085]
[1740986662781,0.4198649,92032.0,92031.0,0.17752885]
[1740986663189,0.4198649,92032.0,92031.0,0.162988]
[1740986663612,0.4198649,92032.0,92025.0,0.162998]
[1740986663821,0.4198649,92032.0,92008.0,0.3001703]
[1740986664027,0.16299,92030.0,92013.0,0.21736]
[1740986664258,0.3251,92031.0,92027.0,0.162995]
[1740986664542,0.3251,92031.0,92030.0,0.01454085]
[1740986664746,0.3241,92031.0,92030.0,0.01454085]
[1740986664902,0.487088,92031.0,92030.0,0.01454085]
[1740986666339,0.3241,92031.0,92030.0,0.01454085]
[1740986666505,0.3241,92031.0,92030.0,0.17753085]
[1740986667316,0.3241,92032.0,92031.0,0.01454085]
[1740986667520,0.3241,92050.0,92048.0,0.01454085]
[1740986667741,0.3241,92050.0,92049.0,0.17749685]
[1740986667919,0.3186,92050.0,92049.0,0.01454085]
[1740986668099,0.3186,92050.0,92049.0,0.17749685]
[1740986668304,0.3186,92050.0,92049.0,0.17649685]
[1740986670435,0.3196,92050.0,92049.0,0.17649685]
[1740986670885,0.3186,92050.0,92049.0,0.17649685]
[1740986671298,0.001,92050.0,92049.0,0.01354085]
[1740986671464,0.001,92050.0,92049.0,0.17649685]
[1740986671664,0.001,92050.0,92049.0,0.17801746]
[1740986671866,0.09602596,92070.0,92069.0,0.162921]
[1740986672046,0.41462596,92070.0,92069.0,0.17746185]
[1740986672806,0.41462596,92070.0,92069.0,0.01454085]
[1740986673002,0.57754496,92070.0,92069.0,0.01454085]
[1740986673181,0.41462596,92070.0,92069.0,0.17746185]
[1740986674679,0.3186,92070.0,92069.0,0.17746185]
[1740986675682,0.3186,92070.0,92069.0,0.17846185]
[1740986676656,0.3186,92070.0,92069.0,0.01554085]
[1740986676657,0.481519,92070.0,92069.0,0.01554085]
[1740986676815,0.481519,92070.0,92069.0,0.01654085]
[1740986677020,0.3186,92070.0,92069.0,0.01654085]
[1740986677216,0.3186,92070.0,92069.0,0.01454085]
[1740986677422,0.3186,92070.0,92069.0,0.17946185]
[1740986677643,0.3186,92070.0,92069.0,0.18146185]
[1740986678163,0.3186,92070.0,92069.0,0.17946185]
[1740986678570,0.3186,92070.0,92069.0,0.18146185]
[1740986678737,0.3186,92070.0,92069.0,0.17946185]
[1740986678936,0.3186,92070.0,92069.0,0.18146185]
[1740986679372,0.3186,92070.0,92069.0,0.17946185]
[1740986679702,0.3186,92070.0,92069.0,0.18146185]
[1740986679931,0.3186,92070.0,92069.0,0.17746185]
[1740986680245,0.3186,92070.0,92069.0,0.18346185]
[1740986680399,0.318941,92070.0,92069.0,0.18346185]
[1740986680804,0.318941,92070.0,92069.0,0.17946185]
[1740986681340,0.318941,92070.0,92069.0,0.18146185]
[1740986683663,0.318941,92070.0,92069.0,0.01854085]
[1740986683793,0.48186,92070.0,92069.0,0.004]
[1740986684196,0.318941,92070.0,92069.0,0.01854085]
[1740986684379,0.318941,92070.0,92069.0,0.004]
[1740986684583,0.52926,92070.0,92069.0,0.004]
[1740986684839,0.52926,92070.0,92069.0,0.002]
[1740986684994,0.52926,92070.0,92030.0,0.27286436]
[1740986684995,0.162951,92052.0,92045.0,0.217282]
[1740986685219,0.162954,92050.0,92030.0,0.0001705]
[1740986685427,0.25954745,92050.0,92030.0,0.0001705]
[1740986685651,0.30914745,92050.0,92030.0,0.0001705]
[1740986686202,0.30914745,92050.0,92034.0,0.162982]
[1740986686371,0.30914745,92050.0,92030.0,0.0001705]
[1740986686574,0.30914745,92050.0,92034.0,0.162982]
[1740986686874,0.30914745,92050.0,92030.0,0.0001705]
[1740986686875,0.92774745,92050.0,92030.0,0.0001705]
[1740986687262,0.92974745,92050.0,92030.0,0.0001705]
[1740986687864,0.92774745,92050.0,92030.0,0.0001705]
[1740986688071,0.92974745,92050.0,92030.0,0.0001705]
[1740986688641,0.92974745,92050.0,92032.0,0.162986]
[1740986689038,0.92974745,92050.0,92030.0,0.0001705]
[1740986689245,0.92974745,92050.0,92036.0,0.01454085]
[1740986689576,0.92774745,92050.0,92037.0,0.01454085]
[1740986689782,0.92774745,92050.0,92040.0,0.162972]
[1740986689977,0.607254,92050.0,92030.0,0.2174905]
[1740986690237,0.532154,92050.0,92044.0,0.01454085]
[1740986690435,0.531154,92050.0,92044.0,0.17750585]
[1740986690873,0.532154,92050.0,92044.0,0.17750585]
[1740986691076,0.532154,92050.0,92047.0,0.01454085]
[1740986691077,0.3692,92050.0,92047.0,0.01454085]
[1740986691191,0.3186,92050.0,92049.0,0.17766735]
[1740986691400,0.481554,92050.0,92049.0,0.01471135]
[1740986691607,0.482554,92050.0,92049.0,0.01471135]
[1740986693023,0.3186,92050.0,92049.0,0.01471135]
[1740986693232,0.482554,92050.0,92049.0,0.01471135]
[1740986693432,0.3196,92050.0,92049.0,0.17766735]
[1740986693851,0.3186,92050.0,92049.0,0.01471135]
[1740986694052,0.482554,92050.0,92049.0,0.01471135]
[1740986694621,0.481554,92050.0,92049.0,0.01471135]
[1740986694998,0.482554,92050.0,92049.0,0.01471135]
[1740986696391,0.481554,92050.0,92049.0,0.01471135]
[1740986696773,0.482554,92050.0,92049.0,0.01471135]
[1740986697214,0.481554,92050.0,92049.0,0.01471135]
[1740986697621,0.3196,92050.0,92049.0,0.01471135]
[1740986697821,0.482554,92050.0,92049.0,0.01471135]
[1740986698588,0.3196,92050.0,92049.0,0.17766735]
[1740986699324,0.3196,92050.0,92049.0,0.0001705]
[1740986699325,0.482554,92050.0,92049.0,0.0001705]
[1740986699481,0.481554,92050.0,92049.0,0.0001705]
[1740986699888,0.781554,92050.0,92049.0,0.0001705]
[1740986700518,0.782554,92050.0,92049.0,0.0001705]
[1740986701119,0.781554,92050.0,92049.0,0.0001705]
[1740986701324,0.80331413,92050.0,92049.0,0.0001705]
[1740986702839,0.80431413,92050.0,92049.0,0.0001705]
[1740986703023,0.64136013,92050.0,92049.0,0.0001705]
[1740986703229,0.3186,92050.0,92049.0,0.01471135]
[1740986703451,0.481554,92050.0,92049.0,0.01471135]
[1740986703604,0.481554,92050.0,92049.0,0.0001705]
[1740986703808,0.781554,92050.0,92049.0,0.0001705]
[1740986704177,0.782554,92050.0,92049.0,0.0001705]
[1740986704393,0.7828946,92050.0,92049.0,0.0001705]
[1740986704737,0.7818946,92050.0,92049.0,0.0001705]
[1740986705760,0.7828946,92050.0,92049.0,0.0001705]
[1740986706342,0.7818946,92050.0,92049.0,0.0001705]
[1740986706760,0.7828946,92050.0,92049.0,0.0001705]
[1740986707184,0.6199406,92050.0,92049.0,0.01471135]
[1740986707420,0.7828946,92050.0,92049.0,0.01471135]
[1740986707582,0.7818946,92050.0,92049.0,0.01471135]
[1740986707782,0.7828946,92050.0,92049.0,0.01471135]
[1740986708054,0.7828946,92050.0,92049.0,0.0001705]
[1740986708369,0.7818946,92050.0,92049.0,0.0001705]
[1740986710551,0.8295946,92050.0,92049.0,0.0001705]
[1740986710746,0.8305946,92050.0,92049.0,0.0001705]
[1740986711099,0.94095941,92050.0,92049.0,0.0001705]
[1740986711268,0.94826641,92050.0,92049.0,0.0001705]
[1740986711865,0.3,92045.0,92030.0,0.0001705]
[1740986712190,0.589988,92031.0,92030.0,0.00029096]
[1740986712482,0.62185281,92031.0,92030.0,0.00029096]
[1740986712735,0.63299564,92031.0,92030.0,0.00029096]
[1740986712955,0.63299564,92031.0,92000.0,0.06431312]
[1740986712956,0.463022,92012.0,92000.0,0.06431312]
[1740986713174,0.78174262,92012.0,92000.0,0.06431312]
[1740986713341,0.61872062,92012.0,92001.0,0.217388]
[1740986713544,0.31872062,92012.0,92011.0,0.01494085]
[1740986713751,0.31872062,92012.0,92011.0,0.0004]
[1740986714048,0.48174262,92012.0,92011.0,0.0004]
[1740986714334,0.31872062,92012.0,92011.0,0.0004]
[1740986714498,0.31872062,92012.0,92011.0,0.17796385]
[1740986714906,0.31872062,92012.0,92011.0,0.01494085]
[1740986715159,0.48174262,92012.0,92011.0,0.01494085]
[1740986715365,0.31872062,92012.0,92011.0,0.17796385]
[1740986715534,0.48174262,92012.0,92011.0,0.01494085]
[1740986715722,0.48274262,92012.0,92011.0,0.01494085]
[1740986715919,0.48274262,92012.0,92011.0,0.0004]
[1740986716124,0.78274262,92012.0,92011.0,0.0004]
[1740986717122,0.78174262,92012.0,92011.0,0.0004]
[1740986718254,0.78274262,92012.0,92011.0,0.0004]
[1740986718458,0.81465071,92012.0,92011.0,0.0004]
[1740986718616,0.93675071,92012.0,92011.0,0.0004]
[1740986719220,0.93675071,92012.0,92000.0,0.06431312]
[1740986719221,0.3,92009.0,92000.0,0.06431312]
[1740986719436,0.563041,92001.0,92000.0,6e-08]
[1740986719803,0.05,91994.0,91984.0,0.00471537]
[1740986719925,0.46307,91985.0,91984.0,0.00471537]
[1740986720124,0.49497809,91985.0,91984.0,0.00471537]
[1740986720682,0.60619,91985.0,91984.0,0.00471537]
[1740986720828,0.6177299,91985.0,91984.0,0.00471537]
[1740986721028,1.0189299,91985.0,91984.0,0.00471537]
[1740986721255,0.463093,91972.0,91971.0,0.0004]
[1740986721458,0.781693,91972.0,91971.0,0.0004]
[1740986722517,0.781693,91972.0,91931.0,0.0004]
[1740986722518,0.3,91967.0,91931.0,0.0004]
[1740986722685,0.463116,91959.0,91931.0,0.0004]
[1740986723091,0.463116,91959.0,91940.0,0.217533]
[1740986723282,0.463116,91959.0,91931.0,0.0004]
[1740986723283,0.3,91959.0,91951.0,0.01454085]
[1740986723489,0.3182,91968.0,91953.0,0.01454085]
[1740986723691,0.3,91967.0,91960.0,0.01454085]
[1740986723892,0.3,91967.0,91963.0,0.01454085]
[1740986724095,0.3,91967.0,91958.0,0.01471125]
[1740986724356,0.3,91967.0,91958.0,0.0001704]
[1740986724494,0.02133093,91964.0,91958.0,0.0001704]
[1740986724797,0.02133093,91964.0,91963.0,0.17764985]
[1740986724994,0.02133093,91964.0,91963.0,0.01454085]
[1740986725396,0.32133093,91964.0,91963.0,0.01454085]
[1740986725629,0.48443793,91964.0,91963.0,0.01454085]
[1740986725832,0.02133093,91964.0,91963.0,0.01454085]
[1740986726141,0.001,91964.0,91963.0,0.01454085]
[1740986726349,0.3251,91964.0,91963.0,0.17764985]
[1740986726954,0.3251,91964.0,91963.0,0.18882019]
[1740986727132,0.3251,91964.0,91963.0,0.31182019]
[1740986727445,0.3241,91964.0,91963.0,0.31182019]
[1740986727750,0.09634715,91971.0,91970.0,0.163096]
[1740986728452,0.42044715,91971.0,91970.0,0.163096]
[1740986728652,0.42044715,91971.0,91963.0,0.01134074]
[1740986728653,0.163107,91964.0,91963.0,0.0001704]
[1740986729222,0.163107,91964.0,91963.0,0.0011704]
[1740986729395,0.42044715,91971.0,91963.0,0.0011704]
[1740986729805,0.163107,91964.0,91963.0,0.0011704]
[1740986730007,0.163107,91964.0,91963.0,0.01571125]
[1740986730331,0.164107,91964.0,91963.0,0.01471125]
[1740986730690,0.164107,91964.0,91963.0,0.0001704]
[1740986730905,0.787207,91964.0,91963.0,0.0001704]
[1740986731058,0.3241,91964.0,91963.0,0.0001704]
[1740986731381,0.3251,91964.0,91963.0,0.17782025]
[1740986731743,0.3241,91964.0,91963.0,0.17782025]
[1740986731930,0.3251,91964.0,91963.0,0.17782025]
[1740986732354,0.3251,91964.0,91963.0,0.01471125]
[1740986732637,0.487207,91964.0,91963.0,0.01471125]
[1740986733266,0.487207,91964.0,91963.0,0.0001704]
[1740986734541,0.834307,91964.0,91963.0,0.0001704]
[1740986734730,0.835307,91964.0,91963.0,0.0001704]
[1740986735116,0.834307,91964.0,91963.0,0.0001704]
[1740986735652,0.835307,91964.0,91963.0,0.0001704]
[1740986736149,0.83440838,91964.0,91963.0,0.0001704]
[1740986740477,0.83440838,91964.0,91958.0,0.0001704]
[1740986740478,0.213116,91959.0,91958.0,0.0001704]
[1740986740648,0.513116,91959.0,91958.0,0.0001704]
[1740986741590,0.463116,91959.0,91958.0,0.0001704]
[1740986745981,0.8368782,91957.0,91956.0,0.0001703]
[1740986746133,2.5778382,91957.0,91956.0,3e-07]
[1740986746338,0.463164,91932.0,91900.0,0.01454085]
[1740986746507,0.9107232,91932.0,91899.0,0.01125058]
[1740986746816,0.9107232,91932.0,91903.0,0.217618]
[1740986747155,0.9107232,91932.0,91896.0,0.0769]
[1740986747311,0.92230043,91932.0,91894.0,0.217709]
[1740986747520,0.92230043,91932.0,91899.0,0.163222]
[1740986747722,0.92230043,91932.0,91894.0,7e-05]
[1740986747723,0.9107232,91932.0,91909.0,0.163204]
[1740986747947,0.91084366,91932.0,91907.0,0.01454085]
[1740986748107,0.91084366,91932.0,91894.0,0.217709]
[1740986748307,0.91084366,91932.0,91895.0,0.01454085]
[1740986748578,0.93267641,91932.0,91904.0,0.01454085]
[1740986748802,0.94091523,91932.0,91894.0,7e-05]
[1740986748987,0.94091523,91932.0,91900.0,0.217627]
[1740986749129,0.94091523,91932.0,91907.0,0.01454085]
[1740986749332,0.94091523,91932.0,91894.0,7e-05]
[1740986749333,0.94091523,91932.0,91909.0,0.01454085]
[1740986749804,0.94091523,91932.0,91910.0,0.01454085]
[1740986749965,0.94091523,91932.0,91907.0,0.01454085]
[1740986750167,0.94091523,91932.0,91909.0,0.01454085]
[1740986750663,0.94091523,91932.0,91931.0,0.01801364]
[1740986751188,0.46318,91923.0,91922.0,0.01826791]
[1740986753092,0.3,91923.0,91922.0,0.01826791]
[1740986753438,0.46318,91923.0,91922.0,0.01826791]
[1740986753657,0.60574556,91923.0,91922.0,0.01826791]
[1740986753813,0.30574556,91923.0,91922.0,0.01826791]
[1740986754015,0.30574556,91923.0,91922.0,0.19598976]
[1740986754257,0.30574556,91923.0,91922.0,0.03280876]
[1740986754757,0.30574556,91923.0,91922.0,0.18144891]
[1740986755256,0.30574556,91923.0,91922.0,0.03280876]
[1740986756003,0.46892556,91923.0,91922.0,0.03280876]
[1740986756442,0.30574556,91923.0,91922.0,0.03280876]
[1740986756648,0.46892556,91923.0,91922.0,0.03280876]
[1740986758194,0.46892556,91923.0,91922.0,0.01826791]
[1740986759482,0.30574556,91923.0,91922.0,0.19598976]
[1740986760866,0.30574556,91923.0,91922.0,0.2074256]
[1740986763408,0.30574556,91923.0,91922.0,0.0442446]
[1740986763588,0.46892556,91923.0,91922.0,0.01826791]
[1740986764410,0.46892556,91923.0,91922.0,0.01843841]
[1740986765959,0.30574556,91923.0,91922.0,0.19616026]
[1740986766097,0.30574556,91923.0,91922.0,0.03297926]
[1740986766493,0.30574556,91923.0,91922.0,0.19616026]
[1740986768335,0.09596944,91927.0,91926.0,0.17771485]
[1740986771628,0.30574556,91939.0,91931.0,0.17670585]
[1740986772593,0.30586602,91932.0,91931.0,0.17670585]
[1740986772792,0.30586602,91932.0,91929.0,0.217557]
[1740986772793,0.30586602,91932.0,91926.0,0.005]
[1740986772996,0.30586602,91932.0,91931.0,0.163165]
[1740986773200,0.30586602,91932.0,91926.0,0.005]
[1740986773396,0.164172,91927.0,91926.0,0.005]
[1740986773903,0.46991756,91927.0,91926.0,0.005]
[1740986774143,0.80233709,91927.0,91926.0,0.005]
[1740986774342,0.46318,91923.0,91918.0,0.0001703]
[1740986774543,0.49559953,91923.0,91918.0,0.0001703]
[1740986775331,0.5178239,91923.0,91918.0,0.0001703]
[1740986778433,0.82356946,91923.0,91918.0,0.0001703]
[1740986778840,0.3,91915.0,91912.0,0.01053089]
[1740986779059,0.3,91913.0,91912.0,0.01053089]
[1740986779261,0.463197,91913.0,91912.0,0.01053089]
[1740986779477,0.30574556,91914.0,91912.0,0.01053089]
[1740986779681,0.30574556,91914.0,91913.0,0.163197]
[1740986779886,0.30574556,91914.0,91913.0,0.01454085]
[1740986780299,0.30574556,91914.0,91913.0,0.17773785]
[1740986782384,0.163197,91913.0,91912.0,0.01053089]
[1740986782803,0.163197,91913.0,91912.0,0.02507174]
[1740986783005,0.212097,91913.0,91912.0,0.01053089]
[1740986783205,0.512097,91913.0,91912.0,0.01053089]
[1740986783649,0.54448326,91913.0,91912.0,0.01053089]
[1740986784490,0.54448326,91913.0,91912.0,0.01153089]
[1740986785104,0.85022882,91913.0,91912.0,0.01153089]
[1740986785400,0.85022882,91913.0,91912.0,0.01053089]
[1740986785747,0.85122882,91913.0,91912.0,0.01053089]
[1740986786150,0.60574556,91913.0,91912.0,0.01053089]
[1740986786362,0.76894256,91913.0,91912.0,0.01053089]
[1740986786599,0.46994256,91913.0,91912.0,0.01053089]
[1740986786802,0.46999325,91913.0,91912.0,0.01053089]
[1740986787652,0.30679625,91913.0,91912.0,0.01053089]
[1740986787852,0.30579625,91913.0,91912.0,0.18827074]
[1740986788827,0.30079625,91913.0,91912.0,0.01053089]
[1740986789027,0.30079625,91913.0,91912.0,0.17372989]
[1740986789228,0.30079625,91913.0,91912.0,0.18844124]
[1740986790283,5.069e-05,91913.0,91912.0,0.26844124]
[1740986790477,5.069e-05,91913.0,91912.0,0.56844124]
[1740986791213,0.09655921,91918.0,91917.0,0.46319]
[1740986791439,0.09655921,91918.0,91917.0,0.57337085]
[1740986791600,0.09655921,91918.0,91917.0,0.47773085]
[1740986791802,0.02737006,91918.0,91917.0,0.62337085]
[1740986792006,4.6e-07,91932.0,91931.0,0.06454085]
[1740986792183,0.000341,91959.0,91957.0,0.163119]
[1740986792382,0.26508961,92015.0,91970.0,0.163096]
[1740986792383,0.0761,92006.0,91970.0,0.163096]
[1740986792605,0.26608961,92005.0,91970.0,0.163096]
[1740986792810,0.26508961,92005.0,91970.0,0.17763685]
[1740986792983,0.26508961,92005.0,92004.0,0.163036]
[1740986793206,0.26508961,92005.0,92004.0,0.17757685]
[1740986793403,0.26508961,92005.0,92004.0,0.01454085]
[1740986793726,0.26508961,92005.0,92003.0,0.163037]
[1740986793904,0.26508961,92005.0,91981.0,0.3]
[1740986794082,0.26508961,92005.0,91980.0,0.18227687]
[1740986794286,0.163038,92003.0,91981.0,0.217436]
[1740986794486,0.001,92002.0,91996.0,0.01454085]
[1740986794710,0.001,92002.0,91977.0,0.0956]
[1740986794925,0.001,92004.0,91960.0,0.36859137]
[1740986795099,0.001,92004.0,91987.0,0.163066]
[1740986795100,0.26608961,92004.0,91987.0,0.163066]
[1740986795297,0.163058,91992.0,91971.0,0.217459]
[1740986795569,0.001,91991.0,91985.0,0.163069]
[1740986795838,0.26508961,92003.0,91971.0,0.217459]
[1740986795839,0.26508961,92003.0,91976.0,0.01454085]
[1740986796015,0.163042,92001.0,91978.0,0.23198185]
[1740986796344,0.217393,91999.0,91988.0,0.17760485]
[1740986796542,0.001,91998.0,91990.0,0.01454085]
[1740986796741,0.001,91998.0,91991.0,0.01454085]
[1740986796946,0.3,91996.0,91960.0,0.09556]
[1740986797144,0.26608961,91995.0,91961.0,0.00152219]
[1740986797466,0.26508961,91995.0,91960.0,0.27303137]
[1740986797625,0.163074,91983.0,91975.0,0.01454085]
[1740986797945,0.163074,91983.0,91971.0,0.217457]
[1740986797946,0.001,91982.0,91977.0,0.163084]
[1740986798247,0.001,91982.0,91978.0,0.01454085]
[1740986798450,0.001,91982.0,91978.0,0.163082]
[1740986798668,0.001,91982.0,91973.0,0.01454085]
[1740986798861,0.001,91982.0,91978.0,0.01454085]
[1740986799039,0.163084,91977.0,91976.0,0.01454085]
[1740986799249,0.26508961,91977.0,91976.0,0.01454085]
[1740986800401,0.26521039,91977.0,91976.0,0.01454085]
[1740986801220,0.26521039,91977.0,91976.0,0.17762685]
[1740986801955,0.42829439,91977.0,91976.0,0.01954085]
[1740986802376,0.26521039,91977.0,91976.0,0.01954085]
[1740986802711,0.42829439,91977.0,91976.0,0.002]
[1740986802901,0.42829439,91977.0,91976.0,0.005]
[1740986804194,0.72829439,91977.0,91976.0,0.005]
[1740986804612,0.72829439,91977.0,91976.0,0.002]
[1740986804753,0.85529439,91977.0,91976.0,0.002]
[1740986805582,0.3,91976.0,91945.0,0.217521]
[1740986805785,0.27303137,91970.0,91921.0,0.01454085]
[1740986805991,0.3,91968.0,91915.0,0.09544]
[1740986806392,0.02158321,91949.0,91912.0,0.01070139]
[1740986806579,0.163164,91932.0,91924.0,0.163176]
[1740986806737,0.001,91931.0,91912.0,0.22829939]
[1740986806917,0.163163,91933.0,91926.0,0.163173]
[1740986807123,0.163164,91932.0,91926.0,0.163173]
[1740986807304,0.217556,91930.0,91912.0,0.01070139]
[1740986807503,0.26608961,91929.0,91912.0,0.01070139]
[1740986807707,0.163197,91913.0,91912.0,0.01110154]
[1740986808141,0.164197,91913.0,91912.0,0.01110154]
[1740986808466,0.42928661,91913.0,91912.0,0.01110154]
[1740986808640,0.42828661,91913.0,91912.0,0.01110154]
[1740986808841,0.26508961,91913.0,91912.0,0.01110154]
[1740986809365,0.26508961,91913.0,91912.0,0.01310154]
[1740986809511,0.26508961,91913.0,91912.0,0.01110154]
[1740986809717,0.26508961,91913.0,91912.0,0.17430054]
[1740986809911,0.26508961,91913.0,91912.0,0.18884139]
[1740986812131,0.26508961,91932.0,91931.0,0.17770585]
[1740986813658,0.26508961,91932.0,91931.0,0.01454085]
[1740986813936,0.42825361,91932.0,91931.0,0.01454085]
[1740986814343,0.26508961,91932.0,91931.0,0.17770585]
[1740986814517,0.26508961,91932.0,91931.0,0.01454085]
[1740986814828,0.42825361,91932.0,91931.0,0.01454085]
[1740986815136,0.42825361,91932.0,91931.0,0.01554085]
[1740986815355,0.42825361,91932.0,91931.0,0.01754085]
[1740986815502,0.26508961,91932.0,91931.0,0.01754085]
[1740986815935,0.26508961,91932.0,91931.0,0.18070585]
[1740986817381,0.26508961,91932.0,91931.0,0.48070585]
[1740986818391,0.26508961,91932.0,91931.0,0.47970585]
[1740986818709,0.26508961,91932.0,91931.0,0.48170585]
[1740986818913,0.26508961,91932.0,91931.0,0.47970585]
[1740986819613,0.26508961,91932.0,91931.0,0.47770585]
[1740986819953,0.26508961,91932.0,91931.0,0.48070585]
[1740986820160,0.26508961,91932.0,91931.0,0.466165]
[1740986820367,0.26508961,91932.0,91931.0,0.471165]
[1740986820568,0.26508961,91932.0,91931.0,0.48570585]
[1740986820966,0.26508961,91932.0,91931.0,0.471165]
[1740986821183,0.26508961,91932.0,91931.0,0.008]
[1740986821439,0.26508961,91932.0,91931.0,0.166165]
[1740986821640,0.26508961,91932.0,91931.0,0.163165]
[1740986821839,0.26508961,91932.0,91931.0,0.18370585]
[1740986822081,0.26508961,91932.0,91931.0,0.01]
[1740986822082,0.42925361,91932.0,91931.0,0.01]
[1740986823666,0.42925361,91932.0,91931.0,0.004]
[1740986824485,0.26608961,91932.0,91931.0,0.01871125]
[1740986824888,0.26608961,91932.0,91931.0,0.17787625]
[1740986824889,0.26508961,91932.0,91931.0,0.17787625]
[1740986825093,0.42825361,91932.0,91931.0,0.01471125]
[1740986825299,0.42925361,91932.0,91931.0,0.01471125]
[1740986825729,0.26508961,91932.0,91931.0,0.01971125]
[1740986826042,0.42825361,91932.0,91931.0,0.0001704]
[1740986826172,0.42925361,91932.0,91931.0,0.0001704]
[1740986826574,0.77785361,91932.0,91931.0,0.0001704]
[1740986826793,0.163197,91913.0,91892.0,0.0137997]
[1740986826994,0.50378661,91913.0,91892.0,0.0137997]
[1740986827229,0.85238661,91913.0,91892.0,0.0137997]
[1740986827929,0.87439179,91913.0,91892.0,0.0137997]
[1740986828150,0.87439179,91913.0,91892.0,0.1770327]
[1740986828333,0.57439179,91913.0,91892.0,0.0137997]
[1740986828494,0.49889179,91913.0,91898.0,0.01454085]
[1740986828689,0.47688661,91913.0,91912.0,0.02564239]
[1740986828952,0.31368961,91913.0,91903.0,0.01957645]
[1740986829149,0.26608961,91912.0,91903.0,0.01957645]
[1740986829352,0.26508961,91912.0,91911.0,0.163201]
[1740986829553,0.26508961,91912.0,91909.0,0.217604]
[1740986829711,0.26508961,91912.0,91904.0,0.217618]
[1740986829911,0.26508961,91912.0,91905.0,0.163212]
[1740986830124,0.26508961,91912.0,91906.0,0.163209]